bitfinex-derivatives/quotes_SOLF0:USTF0_20241011
["timestamp","ask_amount","ask_price","bid_price","bid_amount"]
[1728638318917,7.56,141.97,141.96,3.5243]
[1728638320513,7.56,141.97,141.95,1.51952]
[1728638320819,7.56,141.96,141.95,3.64962]
[1728638321021,7.56,141.96,141.95,0.12502]
[1728638323117,7.56,141.96,141.95,3.64962]
[1728638323520,7.56,141.97,141.95,3.64962]
[1728638325018,7.56,141.96,141.95,3.64962]
[1728638329715,7.56,141.96,141.95,0.12502]
[1728638330128,11.0844,141.96,141.95,0.12502]
[1728638330929,7.56,141.96,141.95,0.12502]
[1728638332929,7.56,141.96,141.95,3.64952]
[1728638333436,3.524,141.98,141.95,3.64952]
[1728638333627,7.56,141.96,141.95,3.64952]
[1728638334730,7.56,141.96,141.95,0.12502]
[1728638340636,7.56,141.97,141.96,3.5243]
[1728638342446,7.56,141.97,141.95,3.64952]
[1728638342736,7.56,141.96,141.95,3.64952]
[1728638343359,5.44,141.99,141.95,0.12502]
[1728638343570,8.9637,141.99,141.96,3.5244]
[1728638343751,7.56,141.97,141.96,3.5244]
[1728638345055,10.3129,142.01,141.96,3.5244]
[1728638345259,4.8729,142.01,141.95,0.12502]
[1728638345459,7.56,141.98,141.95,0.12502]
[1728638346065,7.56,141.98,141.97,3.5239]
[1728638347254,7.56,141.98,141.95,0.12502]
[1728638347565,7.56,141.96,141.95,3.64962]
[1728638349037,7.56,141.97,141.96,3.5241]
[1728638349433,3.5232,142.01,141.95,0.12502]
[1728638349633,6.8199,142.02,141.99,3.5236]
[1728638349833,7.56,142.0,141.99,3.5236]
[1728638351042,7.56,142.0,141.98,3.5238]
[1728638351239,7.56,141.99,141.98,3.5238]
[1728638351944,7.56,141.99,141.97,3.524]
[1728638352143,7.56,141.98,141.97,3.524]
[1728638352848,7.56,141.98,141.95,0.12502]
[1728638353050,7.56,141.96,141.95,0.12502]
[1728638355446,7.56,141.96,141.95,3.64962]
[1728638356647,7.56,141.96,141.95,0.12502]
[1728638357952,7.56,141.96,141.95,3.64962]
[1728638358249,7.56,141.96,141.95,0.12502]
[1728638358451,11.0844,141.96,141.95,0.12502]
[1728638359757,7.56,141.96,141.95,0.12502]
[1728638363256,7.56,141.96,141.95,3.64962]
[1728638363455,7.56,141.96,141.95,0.12502]
[1728638364366,11.0844,141.96,141.95,0.12502]
[1728638365466,7.56,141.96,141.95,0.12502]
[1728638365666,3.524,141.98,141.95,0.12502]
[1728638365868,7.56,141.97,141.95,0.12502]
[1728638366658,7.56,141.97,141.96,3.5242]
[1728638366860,7.56,141.97,141.95,0.12502]
[1728638367464,7.56,141.97,141.95,3.64942]
[1728638369367,7.56,141.96,141.95,3.64942]
[1728638371763,7.56,141.96,141.95,0.12502]
[1728638374163,3.524,141.98,141.95,0.12502]
[1728638374472,7.56,141.97,141.95,3.64962]
[1728638376368,7.56,141.97,141.95,0.12502]
[1728638376572,6.7438,142.01,141.95,0.12502]
[1728638376865,7.56,141.99,141.95,0.12502]
[1728638377258,7.56,141.99,141.96,4.67465771]
[1728638377463,7.56,141.99,141.95,0.12502]
[1728638377668,7.56,141.99,141.97,3.5239]
[1728638378465,7.56,141.99,141.98,3.5239]
[1728638379774,7.56,141.99,141.98,8.20308554]
[1728638381474,5.3,142.05,141.99,3.5234]
[1728638381673,7.56,142.01,141.99,3.5234]
[1728638382376,7.56,142.01,141.96,12.86]
[1728638382568,7.56,142.01,141.97,4.68164131]
[1728638382762,7.56,142.01,141.99,3.5235]
[1728638383168,7.56,142.01,141.96,12.86]
[1728638383372,7.56,142.01,142.0,3.5234]
[1728638383774,7.56,142.01,142.0,8.20441842]
[1728638386179,8.8223,142.05,142.02,3.5227]
[1728638386372,7.56,142.03,141.98,7.56]
[1728638386573,7.56,142.03,141.99,4.68118398]
[1728638386771,7.56,142.03,142.01,3.5229]
[1728638390182,7.56,142.02,142.01,3.5229]
[1728638390374,7.56,142.02,142.0,3.5233]
[1728638390574,7.56,142.01,142.0,3.5233]
[1728638390775,7.56,142.01,142.0,8.20394902]
[1728638390974,7.56,142.01,142.0,4.68064902]
[1728638391788,11.0831,142.01,142.0,4.68064902]
[1728638391994,11.0831,142.01,141.98,3.5238]
[1728638392278,11.0831,142.01,141.99,4.68126282]
[1728638392492,11.0831,142.01,142.0,4.68126282]
[1728638393486,11.0831,142.01,141.98,3.5238]
[1728638393684,11.0831,142.01,141.99,4.68065942]
[1728638393877,11.0831,142.01,141.98,3.5238]
[1728638394078,11.0831,142.01,141.99,4.68053569]
[1728638394278,11.0831,142.01,141.96,14.1466]
[1728638394583,7.56,141.99,141.97,4.68045794]
[1728638394776,11.0838,141.99,141.96,5.3]
[1728638394974,11.0838,141.99,141.97,4.68227433]
[1728638394975,7.56,141.99,141.97,4.68227433]
[1728638395187,7.56,141.99,141.96,5.3]
[1728638395389,7.56,141.99,141.97,4.68261147]
[1728638395685,7.56,141.99,141.96,5.3]
[1728638395882,7.56,141.99,141.97,4.68258392]
[1728638396083,7.56,141.99,141.96,5.3]
[1728638396283,7.56,141.99,141.97,4.68265871]
[1728638396484,7.56,141.99,141.97,3.5241]
[1728638399391,11.0835,142.0,141.97,3.5241]
[1728638400892,7.56,141.99,141.96,3.5242]
[1728638401082,11.0839,141.98,141.97,4.68252574]
[1728638401784,3.5242,141.97,141.94,3.5248]
[1728638401983,7.56,141.96,141.94,3.5248]
[1728638402286,7.56,141.96,141.95,4.80879927]
[1728638403388,7.56,141.96,141.95,4.80832452]
[1728638403991,7.56,141.97,141.95,4.80832452]
[1728638404191,11.0841,141.97,141.95,0.12502]
[1728638404889,7.56,141.96,141.95,0.12502]
[1728638405083,7.56,141.96,141.95,4.80841718]
[1728638405288,7.56,141.96,141.95,0.12502]
[1728638414900,11.0844,141.96,141.95,0.12502]
[1728638415101,7.56,141.96,141.89,5.30502]
[1728638415303,7.56,141.92,141.9,4.68216056]
[1728638415499,7.56,141.92,141.89,5.30502]
[1728638415500,7.56,141.92,141.91,4.68216056]
[1728638416199,7.56,141.92,141.89,5.30502]
[1728638416407,7.56,141.92,141.91,3.5255]
[1728638416703,3.5249,141.94,141.91,3.5255]
[1728638416897,7.56,141.93,141.91,3.5255]
[1728638417605,7.56,141.95,141.92,3.5252]
[1728638417804,7.56,141.95,141.91,7.56]
[1728638418204,7.56,141.95,141.92,3.5253]
[1728638418598,11.56,141.95,141.92,3.5253]
[1728638419003,11.56,141.95,141.93,3.5249]
[1728638419210,4.0,141.95,141.92,7.56]
[1728638419712,4.0,141.95,141.93,3.525]
[1728638419897,4.0,141.95,141.92,7.56]
[1728638420598,4.0,141.95,141.93,3.5251]
[1728638421101,4.0,141.95,141.94,3.5249]
[1728638430617,7.56,141.96,141.94,3.5249]
[1728638430918,7.56,141.96,141.91,12.74]
[1728638431217,7.56,141.96,141.93,3.5249]
[1728638431421,7.56,141.96,141.91,12.74]
[1728638431714,7.56,141.96,141.94,3.5248]
[1728638432123,7.56,141.96,141.93,3.525]
[1728638432515,7.56,141.94,141.91,5.18]
[1728638432720,7.56,141.94,141.92,8.20276909]
[1728638433017,7.56,141.94,141.92,3.5253]
[1728638436623,4.0,141.93,141.92,3.5253]
[1728638437023,4.0,141.93,141.92,8.20421682]
[1728638437410,4.0,141.93,141.92,3.5253]
[1728638437616,4.0,141.93,141.92,8.204401]
[1728638438711,11.56,141.93,141.91,3.5255]
[1728638439122,11.56,141.93,141.9,5.2]
[1728638439318,4.0,141.93,141.92,3.5254]
[1728638440218,4.0,141.93,141.91,3.5255]
[1728638443425,15.0853,141.93,141.9,5.2]
[1728638444626,15.0853,141.93,141.9,8.7258]
[1728638445524,11.56,141.93,141.9,8.7258]
[1728638451132,15.0851,141.93,141.9,3.5258]
[1728638453133,7.56,141.92,141.9,3.5258]
[1728638453931,7.56,141.92,141.89,3.65102]
[1728638455328,7.56,141.92,141.89,0.12502]
[1728638455830,4.0,141.93,141.89,7.68502]
[1728638456039,11.56,141.93,141.9,4.67875303]
[1728638456230,11.56,141.93,141.89,7.68502]
[1728638456536,11.56,141.93,141.9,4.67960902]
[1728638456729,11.56,141.93,141.9,3.5258]
[1728638456938,11.56,141.93,141.89,7.68502]
[1728638457228,11.56,141.93,141.9,4.67943565]
[1728638457432,11.56,141.93,141.91,3.5254]
[1728638465646,7.56,141.92,141.91,3.5254]
[1728638465848,7.56,141.92,141.91,8.21731729]
[1728638466533,4.0,141.93,141.92,3.5254]
[1728638466534,11.56,141.93,141.92,3.5254]
[1728638466737,11.56,141.93,141.92,4.69214639]
[1728638466942,11.56,141.93,141.89,0.12502]
[1728638467242,11.56,141.93,141.9,4.6922842]
[1728638467451,11.56,141.93,141.91,4.6922842]
[1728638467745,11.56,141.93,141.92,4.69341993]
[1728638467947,11.56,141.93,141.89,0.12502]
[1728638468237,11.56,141.93,141.9,8.21930551]
[1728638468437,11.56,141.93,141.91,4.69350551]
[1728638468642,11.56,141.93,141.92,4.69350551]
[1728638469940,4.0,141.93,141.92,8.21890551]
[1728638471233,4.0,141.93,141.92,3.5254]
[1728638471447,4.0,141.93,141.92,8.21917837]
[1728638474949,4.0,141.93,141.92,8.21939048]
[1728638475453,8.5641,141.98,141.94,3.5248]
[1728638475636,7.56,141.96,141.94,3.5248]
[1728638476738,3.5241,141.97,141.95,4.69234945]
[1728638476943,7.56,141.97,141.95,3.5246]
[1728638479141,3.5241,141.98,141.95,3.5246]
[1728638479345,7.56,141.97,141.95,3.5246]
[1728638479651,3.5241,141.98,141.95,3.5246]
[1728638479949,7.56,141.97,141.95,3.5246]
[1728638481842,11.0845,141.96,141.93,8.565]
[1728638482043,7.56,141.94,141.93,8.565]
[1728638482252,7.56,141.94,141.93,13.25665362]
[1728638483142,7.56,141.94,141.93,9.73165362]
[1728638484146,7.56,141.94,141.93,4.69165362]
[1728638484744,11.0849,141.94,141.93,4.69165362]
[1728638484944,7.56,141.94,141.89,0.12502]
[1728638485244,7.56,141.91,141.9,4.6949337]
[1728638486245,7.56,141.92,141.9,4.6949337]
[1728638486444,11.0854,141.92,141.91,4.6949337]
[1728638488648,11.0854,141.92,141.89,0.12502]
[1728638489051,11.0854,141.92,141.9,4.69634571]
[1728638489253,11.0854,141.92,141.91,4.69634571]
[1728638490153,7.56,141.92,141.91,4.69634571]
[1728638491962,7.56,141.92,141.9,3.5258]
[1728638492150,7.56,141.93,141.89,0.12502]
[1728638492348,7.56,141.93,141.91,3.5256]
[1728638493154,7.56,141.93,141.9,3.5257]
[1728638493458,7.56,141.93,141.91,4.69542416]
[1728638493759,7.56,141.93,141.9,3.5257]
[1728638493960,7.56,141.93,141.91,4.69542416]
[1728638494151,7.56,141.93,141.9,3.5257]
[1728638494352,7.56,141.93,141.91,4.69564176]
[1728638494660,7.56,141.93,141.9,3.5257]
[1728638495066,7.56,141.93,141.91,4.69555789]
[1728638495363,7.56,141.93,141.9,3.5257]
[1728638495560,7.56,141.93,141.91,4.6958408]
[1728638495757,7.56,141.93,141.9,3.5257]
[1728638495958,7.56,141.93,141.91,4.6958627]
[1728638496164,7.56,141.93,141.9,3.5257]
[1728638496352,11.0851,141.93,141.9,3.5257]
[1728638496556,11.0851,141.93,141.91,4.69612816]
[1728638496856,11.0851,141.93,141.9,3.5257]
[1728638497148,11.0851,141.93,141.91,4.69620435]
[1728638497353,11.0851,141.93,141.9,3.5257]
[1728638497653,11.0851,141.93,141.91,4.69656677]
[1728638497853,11.0851,141.93,141.9,3.5257]
[1728638498050,11.0851,141.93,141.91,4.69662579]
[1728638498266,11.0851,141.93,141.9,3.5257]
[1728638498459,11.0851,141.93,141.91,4.6967988]
[1728638498660,11.0851,141.93,141.9,3.5257]
[1728638498864,11.0851,141.93,141.91,4.69668911]
[1728638499059,11.0851,141.93,141.9,3.5257]
[1728638499366,11.0851,141.93,141.91,4.69683847]
[1728638499571,11.0851,141.93,141.9,3.5257]
[1728638499857,11.0851,141.93,141.91,4.69738926]
[1728638500061,11.0851,141.93,141.9,3.5257]
[1728638500264,11.0851,141.93,141.91,4.69719454]
[1728638500565,11.0851,141.93,141.9,3.5257]
[1728638500766,11.0851,141.93,141.91,4.69744116]
[1728638501067,11.0851,141.93,141.9,3.5257]
[1728638501250,11.0851,141.93,141.91,4.69744116]
[1728638501455,11.0851,141.93,141.9,3.5257]
[1728638501656,11.0851,141.93,141.91,4.69784659]
[1728638501861,11.0851,141.93,141.9,3.5257]
[1728638502073,11.0851,141.93,141.91,4.69790562]
[1728638502363,7.56,141.93,141.9,3.5257]
[1728638502664,7.56,141.93,141.91,4.69794572]
[1728638502866,7.56,141.93,141.92,4.69794572]
[1728638503265,7.56,141.93,141.92,4.69706539]
[1728638503569,7.56,141.93,141.9,3.5257]
[1728638503764,7.56,141.93,141.91,4.69734504]
[1728638504064,7.56,141.93,141.9,3.5257]
[1728638504264,7.56,141.93,141.91,4.69742055]
[1728638504464,7.56,141.93,141.9,3.5257]
[1728638504764,7.56,141.93,141.91,4.69754128]
[1728638504968,7.56,141.93,141.92,4.69754128]
[1728638506667,7.56,141.93,141.91,3.5256]
[1728638506966,7.56,141.93,141.92,4.69795179]
[1728638510167,3.5247,141.95,141.93,3.525]
[1728638510365,7.56,141.94,141.93,3.525]
[1728638511572,7.56,141.94,141.93,8.22169534]
[1728638513464,7.56,141.94,141.93,3.525]
[1728638513663,7.56,141.94,141.93,8.22143705]
[1728638513868,4.8487,141.96,141.93,8.22143705]
[1728638514067,7.56,141.95,141.94,4.69643705]
[1728638514671,7.56,141.95,141.91,5.04]
[1728638514875,7.56,141.95,141.93,3.525]
[1728638515173,7.56,141.95,141.94,4.69601924]
[1728638515575,7.56,141.95,141.94,8.22091924]
[1728638515880,7.56,141.95,141.94,3.5249]
[1728638516074,2.6649,142.0,141.92,7.56]
[1728638516272,2.6649,142.0,141.98,3.5237]
[1728638516574,9.98522,142.01,141.98,3.5237]
[1728638516575,7.56,141.99,141.98,3.5237]
[1728638517070,7.56,142.0,141.98,3.5237]
[1728638517280,7.56,141.99,141.97,3.524]
[1728638519373,11.0839,141.98,141.95,3.5245]
[1728638519677,7.56,141.97,141.96,4.68918682]
[1728638520175,7.56,141.97,141.95,3.5245]
[1728638520577,7.56,141.97,141.96,4.69007592]
[1728638521975,11.0841,141.97,141.96,4.69007592]
[1728638522173,11.0841,141.97,141.92,7.56]
[1728638522174,11.0841,141.97,141.92,5.04]
[1728638522480,7.56,141.96,141.92,5.04]
[1728638522683,7.56,141.96,141.93,8.21482585]
[1728638522982,11.0841,141.97,141.94,4.68982585]
[1728638523187,1.4285,141.99,141.95,15.77357678]
[1728638523188,12.5122,141.99,141.95,15.77357678]
[1728638523369,12.5122,141.99,141.95,11.0844]
[1728638523985,1.42192,142.01,141.96,12.24821467]
[1728638524176,8.98192,142.01,141.97,4.68821467]
[1728638524372,8.98192,142.01,141.96,7.56]
[1728638524578,8.98192,142.01,141.97,4.68597478]
[1728638524783,8.98192,142.01,141.98,3.5238]
[1728638524784,12.50522,142.01,141.98,3.5238]
[1728638524981,12.50522,142.01,141.96,7.56]
[1728638524982,8.98192,142.01,141.96,7.56]
[1728638525191,8.98192,142.01,141.97,4.68580827]
[1728638525370,11.0835,142.0,141.97,3.524]
[1728638525577,7.56,141.98,141.95,5.04]
[1728638525777,7.56,141.97,141.95,5.04]
[1728638526585,7.56,141.97,141.93,8.545]
[1728638526784,7.56,141.97,141.94,4.68619369]
[1728638526982,7.56,141.97,141.95,4.68619369]
[1728638527288,11.0842,141.97,141.94,3.5248]
[1728638527477,11.0842,141.97,141.95,4.68617024]
[1728638527685,7.56,141.97,141.94,3.5248]
[1728638527885,7.56,141.97,141.95,4.68557113]
[1728638528185,7.56,141.97,141.95,3.5245]
[1728638528882,3.524,141.98,141.95,3.5245]
[1728638529075,11.0837,141.99,141.95,3.5245]
[1728638530391,11.0837,141.99,141.95,7.56]
[1728638530584,11.0837,141.99,141.96,3.5243]
[1728638531182,7.56,141.99,141.96,3.5243]
[1728638531584,11.0835,142.0,141.95,7.56]
[1728638531786,12.50512,142.01,141.97,7.56]
[1728638531992,8.98192,142.01,141.97,7.56]
[1728638533190,3.5234,142.0,141.97,11.084]
[1728638533983,12.50512,142.01,141.98,3.5238]
[1728638534788,7.56,142.0,141.98,3.5238]
[1728638539387,11.0836,141.99,141.97,3.5241]
[1728638539593,11.0836,141.99,141.96,5.02]
[1728638539886,11.0836,141.99,141.96,8.5442]
[1728638542999,3.5236,141.99,141.96,8.5442]
[1728638545696,7.56,142.0,141.96,5.02]
[1728638545902,11.0835,142.0,141.97,3.5241]
[1728638546106,7.56,142.0,141.96,12.58]
[1728638546414,3.64812,142.01,141.98,11.0837]
[1728638546607,3.64812,142.01,141.98,7.56]
[1728638546608,0.12502,142.01,141.98,7.56]
[1728638546798,7.56,142.0,141.96,5.02]
[1728638546993,11.0838,141.99,141.96,8.5441]
[1728638547705,3.5239,141.98,141.95,3.5245]
[1728638548599,0.12502,142.01,142.0,3.5234]
[1728638548801,0.12502,142.01,142.0,11.0834]
[1728638556211,0.12502,142.01,142.0,3.5234]
[1728638556403,0.12502,142.01,142.0,11.0834]
[1728638556906,0.12502,142.01,142.0,3.5234]
[1728638557208,0.12502,142.01,142.0,11.0834]
[1728638557812,0.12502,142.01,141.98,3.5238]
[1728638558103,0.12502,142.01,141.99,7.56]
[1728638558303,0.12502,142.01,141.98,5.02]
[1728638558510,0.12502,142.01,141.99,11.0835]
[1728638560415,0.12502,142.01,142.0,3.5234]
[1728638561216,0.12502,142.01,141.99,7.56]
[1728638561417,0.12502,142.01,141.99,11.0835]
[1728638563519,7.68502,142.01,141.95,1.3189]
[1728638563816,7.68502,142.01,141.96,12.58]
[1728638564016,11.20822,142.01,141.97,3.524]
[1728638565611,3.64822,142.01,141.98,7.56]
[1728638569806,3.64822,142.01,141.97,3.524]
[1728638570009,3.64822,142.01,141.99,7.56]
[1728638570719,0.12502,142.01,141.99,7.56]
[1728638571722,0.12502,142.01,141.99,11.0836]
[1728638572421,0.12502,142.01,142.0,7.56]
[1728638573922,0.12502,142.01,142.0,11.0834]
[1728638579923,0.12502,142.01,142.0,7.56]
[1728638580615,0.12502,142.01,142.0,11.0834]
[1728638586229,0.12502,142.01,142.0,15.7615011]
[1728638586931,0.12502,142.01,142.0,11.0834]
[1728638587334,0.12502,142.01,142.0,15.7606901]
[1728638587532,0.12502,142.07,142.0,7.56]
[1728638587733,0.12502,142.07,142.03,7.56]
[1728638588030,3.522,142.06,142.03,11.0825]
[1728638588222,7.68502,142.07,142.03,7.56]
[1728638588627,3.5221,142.06,142.03,7.56]
[1728638590427,3.64672,142.07,142.04,11.0823]
[1728638609135,3.64672,142.07,142.04,3.5223]
[1728638609438,3.64672,142.07,142.04,11.0823]
[1728638610548,3.64672,142.07,142.04,3.5223]
[1728638610746,7.56,142.05,141.97,1.3866]
[1728638610942,7.56,142.03,141.98,4.66924634]
[1728638611149,7.56,142.03,141.97,8.9466]
[1728638611348,7.56,142.03,141.98,4.67219924]
[1728638611647,7.56,142.03,141.97,8.9466]
[1728638611842,3.5231,142.01,141.98,3.5237]
[1728638612247,7.56,142.0,141.94,2.6808]
[1728638612442,7.56,141.99,141.96,5.02]
[1728638612644,7.56,142.0,141.96,9.69363275]
[1728638613449,11.0835,142.0,141.97,3.5241]
[1728638613837,11.0835,142.0,141.96,9.69363275]
[1728638614240,11.0835,142.0,141.96,13.21783275]
[1728638617253,3.5237,141.99,141.96,8.5442]
[1728638619453,7.56,141.98,141.96,8.5442]
[1728638619960,7.56,141.97,141.95,0.12502]
[1728638620163,7.56,141.96,141.95,0.12502]
[1728638628073,11.0844,141.96,141.95,0.12502]
[1728638628667,3.525,141.94,141.91,3.5255]
[1728638628974,7.56,141.94,141.91,3.5255]
[1728638629167,3.5248,141.95,141.92,3.5252]
[1728638629478,7.56,141.96,141.91,7.56]
[1728638630276,11.0845,141.96,141.93,3.525]
[1728638631774,7.56,141.94,141.93,3.525]
[1728638632278,7.56,141.94,141.92,3.5252]
[1728638636771,3.5246,141.95,141.92,3.5252]
[1728638636970,7.56,141.94,141.92,3.5252]
[1728638639385,11.0849,141.94,141.92,3.5252]
[1728638640387,7.56,141.95,141.92,3.5252]
[1728638640576,11.0847,141.95,141.92,3.5252]
[1728638643486,5.08,141.97,141.91,7.56]
[1728638643787,7.56,141.96,141.91,12.64]
[1728638644091,11.0845,141.96,141.91,12.64]
[1728638644595,11.0845,141.96,141.93,3.525]
[1728638648088,7.56,141.95,141.93,3.525]
[1728638648695,11.0846,141.95,141.93,3.525]
[1728638649092,7.56,141.94,141.92,3.5253]
[1728638673607,7.56,141.94,141.9,7.56]
[1728638673807,7.56,141.94,141.92,3.5251]
[1728638679211,7.56,141.94,141.93,4.68267753]
[1728638679613,3.5246,141.95,141.93,4.68267753]
[1728638679818,11.0846,141.95,141.92,3.5251]
[1728638680120,11.0846,141.95,141.93,4.68274097]
[1728638680322,11.0846,141.95,141.92,3.5251]
[1728638680619,11.0846,141.95,141.93,4.68408811]
[1728638680917,11.0846,141.95,141.92,3.5251]
[1728638681219,11.0846,141.95,141.93,4.68414902]
[1728638681518,11.0846,141.95,141.92,3.5251]
[1728638681817,11.0846,141.95,141.93,4.68554319]
[1728638682118,11.0846,141.95,141.92,3.5251]
[1728638682319,11.0846,141.95,141.93,4.6866046]
[1728638682515,11.0846,141.95,141.92,3.5251]
[1728638682720,11.0846,141.95,141.93,4.68658335]
[1728638682921,11.0846,141.95,141.92,3.5251]
[1728638683420,11.0846,141.95,141.93,4.68673093]
[1728638683621,11.0846,141.95,141.92,3.5251]
[1728638683819,11.0846,141.95,141.93,4.68643202]
[1728638684015,7.56,141.94,141.91,3.5256]
[1728638684209,5.08,141.97,141.92,4.68696832]
[1728638684210,60.46389592,141.97,141.92,4.68696832]
[1728638684415,60.46389592,141.97,141.93,4.68696832]
[1728638684717,3.5249,141.94,141.91,3.5256]
[1728638684922,7.56,141.92,141.91,3.5256]
[1728638685120,7.56,141.92,141.91,8.2122925]
[1728638688125,7.56,141.92,141.91,3.5256]
[1728638688623,7.56,141.92,141.91,8.21446673]
[1728638689618,7.56,141.92,141.91,4.68886673]
[1728638691124,11.0854,141.92,141.91,4.68886673]
[1728638691725,11.0854,141.92,141.89,3.65092]
[1728638691933,7.56,141.91,141.89,3.65092]
[1728638692125,7.56,141.91,141.9,4.68897706]
[1728638698731,7.56,141.91,141.9,4.68664646]
[1728638698928,11.0856,141.91,141.9,4.68664646]
[1728638699125,11.0856,141.91,141.89,0.12502]
[1728638699330,3.5256,141.91,141.9,4.68723764]
[1728638699535,11.0856,141.91,141.9,4.68723764]
[1728638700034,11.0856,141.91,141.89,0.12502]
[1728638700229,7.56,141.9,141.89,0.12502]
[1728638700428,7.56,141.9,141.89,4.81182833]
[1728638701233,3.5264,141.88,141.85,3.5271]
[1728638701438,7.56,141.86,141.85,3.5271]
[1728638703930,7.56,141.86,141.84,3.5273]
[1728638706044,7.56,141.9,141.88,3.5262]
[1728638706540,7.56,141.89,141.88,3.5262]
[1728638707035,7.56,141.89,141.86,3.5267]
[1728638707236,7.56,141.88,141.86,3.5267]
[1728638707439,6.3106,141.93,141.85,12.58]
[1728638707742,7.56,141.9,141.85,12.58]
[1728638710138,7.56,141.9,141.87,3.5264]
[1728638710734,7.56,141.9,141.85,12.58]
[1728638710938,7.56,141.9,141.88,3.5263]
[1728638711340,7.56,141.89,141.85,5.02]
[1728638711541,7.56,141.89,141.86,3.5268]
[1728638712231,11.0862,141.89,141.85,5.02]
[1728638712542,11.0862,141.89,141.86,3.5268]
[1728638713338,7.56,141.88,141.86,3.5268]
[1728638721150,7.56,141.88,141.85,5.02]
[1728638722041,7.56,141.88,141.86,3.5267]
[1728638730253,3.5261,141.89,141.86,3.5267]
[1728638730658,11.0861,141.89,141.86,3.5267]
[1728638736257,7.56,141.87,141.86,3.5267]
[1728638740759,7.56,141.87,141.85,8.5469]
[1728638740950,3.5263,141.88,141.85,8.5469]
[1728638741149,7.56,141.87,141.85,8.5469]
[1728638746467,3.5263,141.88,141.85,8.5469]
[1728638746664,11.0863,141.88,141.85,8.5469]
[1728638747466,7.56,141.86,141.85,5.02]
[1728638748061,7.56,141.86,141.84,3.5272]
[1728638757266,7.56,141.86,141.85,4.60694923]
[1728638759468,7.56,141.87,141.85,8.13404923]
[1728638759665,7.56,141.87,141.85,3.5271]
[1728638761869,56.68782903,141.93,141.83,96.72799602]
[1728638762075,56.68782903,141.93,141.87,7.56]
[1728638762273,7.56,141.92,141.88,7.56]
[1728638762671,7.56,141.92,141.89,3.526]
[1728638763265,11.0857,141.91,141.88,4.60762288]
[1728638763472,11.0857,141.91,141.89,4.60562864]
[1728638763780,11.0857,141.91,141.86,12.58]
[1728638763973,11.0857,141.91,141.87,4.60546785]
[1728638764174,7.56,141.91,141.88,8.13166785]
[1728638764381,7.56,141.91,141.89,4.60546785]
[1728638764575,7.56,141.91,141.86,5.02]
[1728638764878,7.56,141.91,141.88,3.5262]
[1728638765181,7.56,141.91,141.89,4.60595057]
[1728638765573,7.56,141.91,141.88,3.5262]
[1728638765768,7.56,141.91,141.89,8.13213921]
[1728638765969,7.56,141.91,141.89,3.5261]
[1728638766569,3.5252,141.93,141.9,3.5258]
[1728638766770,7.56,141.92,141.9,3.5258]
[1728638768575,0.12502,141.95,141.92,3.5252]
[1728638768868,7.56,141.94,141.92,3.5252]
[1728638769176,7.56,141.94,141.93,3.5251]